bitfinex/quotes_BTCUSD_20240718
["timestamp","ask_amount","ask_price","bid_price","bid_amount"]
[1721326445624,0.8994816,63525.0,63524.0,0.06366358]
[1721326445842,0.78909,63525.0,63524.0,0.06366358]
[1721326446052,0.79109,63525.0,63524.0,0.06366358]
[1721326446491,0.78909,63525.0,63524.0,0.06366358]
[1721326446925,0.79009,63525.0,63524.0,0.06366358]
[1721326447568,0.78809,63525.0,63524.0,0.06366358]
[1721326447755,0.78909,63525.0,63524.0,0.06366358]
[1721326449141,0.8994816,63525.0,63524.0,0.06366358]
[1721326449361,0.78909,63525.0,63524.0,0.06366358]
[1721326450043,0.474254,63525.0,63524.0,0.06366358]
[1721326451339,0.473254,63525.0,63524.0,0.06366358]
[1721326451779,0.472254,63525.0,63524.0,0.06366358]
[1721326452232,0.314806,63532.0,63524.0,0.06366358]
[1721326452233,0.157417,63526.0,63524.0,0.06366358]
[1721326452439,0.157417,63526.0,63524.0,0.07908531]
[1721326453358,0.157417,63526.0,63524.0,0.08108531]
[1721326453565,0.157418,63525.0,63524.0,0.07908531]
[1721326454505,0.002794,63533.0,63527.0,0.314823]
[1721326454717,0.157396,63534.0,63529.0,0.157406]
[1721326455147,0.04956347,63537.0,63528.0,0.21467479]
[1721326455365,0.20695247,63537.0,63532.0,0.1574]
[1721326455616,0.20695247,63537.0,63533.0,0.157397]
[1721326455839,0.00083,63538.0,63537.0,0.534365]
[1721326456101,0.00083,63538.0,63537.0,0.219588]
[1721326456594,0.00083,63538.0,63537.0,0.534365]
[1721326456825,0.00083,63538.0,63537.0,0.610865]
[1721326457261,0.00083,63538.0,63537.0,0.620865]
[1721326457924,0.00083,63538.0,63537.0,0.631865]
[1721326458372,0.00183,63538.0,63537.0,0.1687]
[1721326458813,0.00183,63538.0,63537.0,0.326088]
[1721326459255,0.00183,63538.0,63537.0,0.1687]
[1721326459528,0.473988,63538.0,63537.0,0.03]
[1721326459743,0.78876,63538.0,63537.0,0.03]
[1721326459959,1.103532,63538.0,63537.0,0.03]
[1721326460464,1.85876655,63538.0,63537.0,0.03]
[1721326460872,0.78709,63525.0,63524.0,0.00346358]
[1721326460873,0.84769,63525.0,63524.0,0.00346358]
[1721326461102,1.101926,63525.0,63524.0,0.00346358]
[1721326462245,0.472254,63525.0,63524.0,0.00346358]
[1721326462487,0.478254,63525.0,63524.0,0.08526358]
[1721326463183,0.479254,63525.0,63524.0,0.08526358]
[1721326463865,0.007,63525.0,63524.0,0.14826358]
[1721326464088,0.01,63525.0,63524.0,0.14826358]
[1721326464313,0.01,63525.0,63524.0,0.14726358]
[1721326464314,0.004,63525.0,63524.0,0.14726358]
[1721326464570,0.476254,63525.0,63524.0,0.14726358]
[1721326464795,0.481254,63525.0,63524.0,0.14726358]
[1721326465027,0.875698,63525.0,63524.0,0.00346358]
[1721326465259,0.870698,63525.0,63524.0,0.00346358]
[1721326465705,0.870698,63525.0,63524.0,0.00446358]
[1721326465930,1.185534,63525.0,63524.0,0.00446358]
[1721326466153,1.181534,63525.0,63524.0,0.00346358]
[1721326466375,1.181534,63525.0,63524.0,0.00646358]
[1721326466606,0.78709,63525.0,63524.0,0.00646358]
[1721326467046,0.78909,63525.0,63524.0,0.00646358]
[1721326467283,0.78709,63525.0,63524.0,0.00346358]
[1721326467530,0.82615662,63525.0,63524.0,0.00446358]
[1721326468219,0.82715662,63525.0,63524.0,0.00446358]
[1721326468453,0.78809,63525.0,63524.0,0.00346358]
[1721326468676,0.78709,63525.0,63524.0,0.00346358]
[1721326468917,0.79109,63525.0,63524.0,0.00346358]
[1721326469621,1.105926,63525.0,63524.0,0.00346358]
[1721326469840,1.105926,63525.0,63524.0,0.00446358]
[1721326470091,1.2165186,63525.0,63524.0,0.00446358]
[1721326470307,1.2165186,63525.0,63524.0,0.00346358]
[1721326470523,1.2185186,63525.0,63524.0,0.00346358]
[1721326471431,1.2165186,63525.0,63524.0,0.00346358]
[1721326471651,1.2185186,63525.0,63524.0,0.00346358]
[1721326471871,1.2145186,63525.0,63524.0,0.00346358]
[1721326472096,0.78909,63525.0,63524.0,0.00346358]
[1721326472315,0.79309,63525.0,63524.0,0.00346358]
[1721326473121,0.78909,63525.0,63524.0,0.00346358]
[1721326473342,0.79109,63525.0,63524.0,0.00346358]
[1721326473555,1.15329328,63525.0,63524.0,0.00346358]
[1721326473758,1.93956158,63525.0,63524.0,0.00346358]
[1721326473955,2.03756158,63525.0,63524.0,0.00346358]
[1721326474165,2.35239758,63525.0,63524.0,0.00346358]
[1721326474360,2.43792578,63525.0,63524.0,0.00346358]
[1721326474746,2.3010303,63525.0,63524.0,0.00346358]
[1721326474973,2.3010303,63525.0,63524.0,0.00446358]
[1721326474974,2.35113937,63525.0,63524.0,0.00446358]
[1721326475213,2.3070303,63525.0,63524.0,0.00446358]
[1721326475432,2.35548429,63525.0,63524.0,0.00446358]
[1721326475639,2.35148429,63525.0,63524.0,0.00446358]
[1721326476324,2.34948429,63525.0,63524.0,0.00346358]
[1721326476547,2.36148429,63525.0,63524.0,0.00446358]
[1721326476767,2.36548429,63525.0,63524.0,0.00546358]
[1721326476999,2.05064829,63525.0,63524.0,0.00546358]
[1721326478067,2.05083572,63525.0,63524.0,0.00546358]
[1721326478513,1.60604275,63525.0,63524.0,0.00546358]
[1721326480295,2.07526049,63525.0,63524.0,0.00546358]
[1721326480541,2.21576049,63525.0,63524.0,0.00546358]
[1721326480751,2.38146049,63525.0,63524.0,0.00546358]
[1721326480954,2.69629649,63525.0,63524.0,0.00546358]
[1721326481188,3.01792178,63525.0,63524.0,0.00546358]
[1721326481406,2.98646815,63525.0,63524.0,0.00546358]
[1721326481632,2.90156314,63525.0,63524.0,0.00546358]
[1721326481834,3.10282674,63525.0,63524.0,0.00546358]
[1721326482689,2.98687791,63525.0,63524.0,0.00546358]
[1721326482930,2.98687801,63525.0,63524.0,0.00546358]
[1721326483377,3.10323665,63525.0,63524.0,0.00546358]
[1721326483590,3.01792178,63525.0,63524.0,0.00546358]
[1721326483814,3.10320302,63525.0,63524.0,0.00546358]
[1721326484028,2.98684438,63525.0,63524.0,0.00546358]
[1721326484253,2.85200464,63525.0,63524.0,0.00546358]
[1721326484499,3.10393697,63525.0,63524.0,0.00546358]
[1721326484706,2.88748231,63525.0,63524.0,0.00546358]
[1721326484945,2.90216568,63525.0,63524.0,0.00546358]
[1721326485384,3.10385129,63525.0,63524.0,0.00546358]
[1721326485600,2.9875747,63525.0,63524.0,0.00546358]
[1721326486028,3.10385129,63525.0,63524.0,0.00546358]
[1721326486504,2.9875747,63525.0,63524.0,0.00546358]
[1721326487384,3.10385129,63525.0,63524.0,0.00546358]
[1721326487614,3.10385129,63525.0,63524.0,5.8e-07]
[1721326487615,2.98738323,63525.0,63524.0,5.8e-07]
[1721326487840,3.01038323,63525.0,63524.0,5.8e-07]
[1721326488090,2.404831,63522.0,63521.0,0.0072397]
[1721326488309,3.1184825,63522.0,63521.0,0.0072397]
[1721326489234,3.00223066,63522.0,63521.0,0.0072397]
[1721326489449,3.01369566,63522.0,63521.0,0.0072397]
[1721326490166,3.02669566,63522.0,63521.0,0.0072397]
[1721326490391,3.11813032,63522.0,63521.0,0.0072397]
[1721326490634,3.13013032,63522.0,63521.0,0.0082397]
[1721326490870,3.13136105,63522.0,63521.0,0.0082397]
[1721326491567,3.13136105,63522.0,63521.0,7e-07]
[1721326491793,2.327329,63519.0,63518.0,0.01146501]
[1721326492018,2.74295939,63519.0,63518.0,0.01146501]
[1721326492763,2.69295939,63519.0,63518.0,0.01146501]
[1721326492981,2.60700494,63519.0,63518.0,0.01146501]
[1721326493224,2.75666569,63519.0,63518.0,0.01146501]
[1721326493462,2.91101385,63519.0,63518.0,0.01146501]
[1721326493918,2.91070293,63519.0,63518.0,0.01146501]
[1721326494121,2.78869964,63519.0,63518.0,0.01146501]
[1721326494369,2.98974893,63519.0,63518.0,0.01146501]
[1721326494624,3.00374893,63519.0,63518.0,0.01146501]
[1721326495319,2.98974893,63519.0,63518.0,0.01146501]
[1721326495761,3.00374893,63519.0,63518.0,0.01146501]
[1721326496250,2.98974893,63519.0,63518.0,0.00646501]
[1721326496475,3.00374893,63519.0,63518.0,0.00646501]
[1721326497192,2.98964766,63519.0,63518.0,0.00646501]
[1721326497434,2.95364766,63519.0,63518.0,0.00646501]
[1721326497905,2.93964766,63519.0,63518.0,0.00646501]
[1721326498127,3.00364766,63519.0,63518.0,0.00646501]
[1721326498582,2.98964766,63519.0,63518.0,0.00646501]
[1721326498753,2.95364766,63519.0,63518.0,0.00646501]
[1721326499169,2.93964766,63519.0,63518.0,0.00646501]
[1721326499380,2.92564766,63519.0,63518.0,0.00646501]
[1721326499613,2.93964766,63519.0,63518.0,0.00646501]
[1721326499811,2.95364766,63519.0,63518.0,0.00646501]
[1721326500166,2.86105079,63519.0,63518.0,0.00646501]
[1721326500373,2.55853126,63519.0,63518.0,0.00646501]
[1721326501202,2.53053126,63519.0,63518.0,0.00646501]
[1721326501453,1.16656262,63519.0,63518.0,0.06806501]
[1721326501641,0.801165,63519.0,63518.0,0.14436501]
[1721326501867,1.116031,63519.0,63518.0,0.14436501]
[1721326502071,1.102031,63519.0,63518.0,0.14436501]
[1721326502283,1.2262341,63519.0,63518.0,0.14436501]
[1721326503124,1.2132341,63519.0,63518.0,0.14436501]
[1721326503467,0.001,63519.0,63518.0,0.14436501]
[1721326503672,0.158433,63519.0,63518.0,0.14436501]
[1721326503882,0.001,63519.0,63518.0,0.29874675]
[1721326504514,0.314835,63526.0,63521.0,0.1486]
[1721326504719,0.314843,63524.0,63522.0,0.1486]
[1721326504927,0.157423,63523.0,63522.0,0.1486]
[1721326505136,0.787115,63523.0,63522.0,0.1486]
[1721326505439,1.212156,63523.0,63522.0,0.1486]
[1721326506932,0.425041,63523.0,63521.0,0.01542173]
[1721326507147,1.72093965,63522.0,63521.0,0.01542173]
[1721326507391,2.29343171,63522.0,63521.0,0.01542173]
[1721326507602,2.29343171,63522.0,63518.0,0.00646501]
[1721326507603,1.416897,63519.0,63518.0,0.00646501]
[1721326507815,1.6959198,63519.0,63518.0,0.00646501]
[1721326508020,1.90004792,63519.0,63518.0,0.00646501]
[1721326508884,1.90014861,63519.0,63518.0,0.00646501]
[1721326509369,1.2765513,63519.0,63518.0,0.00646501]
[1721326509601,1.2765513,63519.0,63518.0,0.14876501]
[1721326509602,0.157433,63519.0,63518.0,0.14876501]
[1721326510056,0.795165,63519.0,63518.0,0.14876501]
[1721326510256,0.801165,63519.0,63518.0,0.14876501]
[1721326510484,0.008,63519.0,63518.0,0.14876501]
[1721326510890,0.009,63519.0,63518.0,0.14876501]
[1721326511127,0.166433,63519.0,63518.0,0.14876501]
[1721326511330,0.166433,63519.0,63518.0,0.08576501]
[1721326511331,0.81265325,63519.0,63518.0,0.08576501]
[1721326511536,1.12751925,63519.0,63518.0,0.08576501]
[1721326511724,1.12751925,63519.0,63518.0,0.00646501]
[1721326511725,1.12651925,63519.0,63518.0,0.00646501]
[1721326512172,1.17644904,63519.0,63518.0,0.00646501]
[1721326512386,1.68776699,63519.0,63518.0,0.00646501]
[1721326512625,1.76170165,63519.0,63518.0,0.00646501]
[1721326513024,1.44683565,63519.0,63518.0,0.00646501]
[1721326513277,1.76270165,63519.0,63518.0,0.00646501]
[1721326513493,1.76170165,63519.0,63518.0,0.00646501]
[1721326513780,1.77053165,63519.0,63518.0,0.00646501]
[1721326514051,1.84163165,63519.0,63518.0,0.00646501]
[1721326514972,1.84108769,63519.0,63518.0,0.00646501]
[1721326515213,1.77598769,63519.0,63518.0,0.00646501]
[1721326516152,1.30673995,63519.0,63518.0,0.00646501]
[1721326516384,0.901995,63519.0,63518.0,0.06866501]
[1721326516622,1.216861,63519.0,63518.0,0.06866501]
[1721326516842,0.901995,63519.0,63518.0,0.06866501]
[1721326517078,0.801995,63519.0,63518.0,0.06866501]
[1721326517301,1.116861,63519.0,63518.0,0.06866501]
[1721326517533,1.1970605,63519.0,63518.0,0.06866501]
[1721326518050,1.1970605,63519.0,63518.0,0.00646501]
[1721326519276,1.58510772,63519.0,63518.0,0.00646501]
[1721326519514,1.89997372,63519.0,63518.0,0.00646501]
[1721326519974,2.21483972,63519.0,63518.0,0.00646501]
[1721326520192,1.89997372,63519.0,63518.0,0.00646501]
[1721326521194,2.21517393,63519.0,63518.0,0.00646501]
[1721326521636,2.21524337,63519.0,63518.0,0.00646501]
[1721326522359,1.90037737,63519.0,63518.0,0.00646501]
[1721326523740,1.83947737,63519.0,63518.0,0.00646501]
[1721326524009,0.87516413,63519.0,63518.0,0.08746501]
[1721326524282,0.487129,63519.0,63518.0,0.08746501]
[1721326524756,0.801995,63519.0,63518.0,0.08746501]
[1721326525418,1.116861,63519.0,63518.0,0.08746501]
[1721326526372,1.116861,63519.0,63518.0,0.00646501]
[1721326526624,1.27752117,63519.0,63518.0,0.00646501]
[1721326527502,1.84703245,63519.0,63518.0,0.00646501]
[1721326527739,1.8716742,63519.0,63518.0,0.00646501]
[1721326527966,1.40242646,63519.0,63518.0,0.00646501]
[1721326528229,1.16609861,63519.0,63518.0,0.15236501]
[1721326528456,0.85123261,63519.0,63518.0,0.15236501]
[1721326528686,0.801995,63519.0,63518.0,0.15236501]
[1721326530572,0.172263,63519.0,63518.0,0.15236501]
[1721326530875,0.487129,63519.0,63518.0,0.15236501]
[1721326531098,0.8821938,63519.0,63518.0,0.15236501]
[1721326531316,1.1970598,63519.0,63518.0,0.15236501]
[1721326533334,0.801995,63519.0,63518.0,0.15236501]
[1721326534471,0.487129,63519.0,63518.0,0.15236501]
[1721326534690,0.01483,63519.0,63518.0,0.15236501]
[1721326535150,0.172263,63519.0,63518.0,0.15236501]
[1721326535603,0.01483,63519.0,63518.0,0.15236501]
[1721326537466,0.01483,63519.0,63518.0,1.09392375]
[1721326538323,0.00683,63519.0,63518.0,1.09392375]
[1721326538535,0.00083,63519.0,63518.0,1.45879475]
[1721326538752,0.00183,63519.0,63518.0,1.58179475]
[1721326539181,0.00283,63519.0,63518.0,1.58179475]
[1721326540321,0.00083,63519.0,63518.0,1.58179475]
[1721326540544,0.00083,63519.0,63518.0,2.02741857]
[1721326540768,0.04944163,63536.0,63535.0,0.298293]
[1721326540984,0.0658,63559.0,63537.0,0.522165]
[1721326541209,0.002794,63547.0,63537.0,1.44700074]
[1721326541424,0.04973474,63548.0,63547.0,0.1409]
[1721326541645,0.0658,63563.0,63547.0,0.15632173]
[1721326541848,0.314699,63553.0,63547.0,0.15632173]
[1721326542069,0.314704,63552.0,63547.0,0.15632173]
[1721326542299,0.314683,63556.0,63547.0,0.15632173]
[1721326542746,0.157361,63548.0,63547.0,0.15632173]
[1721326542958,0.04981313,63560.0,63547.0,0.15632173]
[1721326542959,0.157359,63549.0,63547.0,0.15632173]
[1721326543383,0.315699,63553.0,63547.0,0.15632173]
[1721326543384,0.157355,63551.0,63547.0,0.15632173]
[1721326543846,0.001,63553.0,63548.0,0.15438174]
[1721326544089,0.157355,63551.0,63548.0,0.15438174]
[1721326544323,0.15835,63553.0,63548.0,0.31174174]
[1721326544564,0.15735,63553.0,63548.0,0.15438174]
[1721326544796,0.157351,63552.0,63549.0,0.157357]
[1721326545034,0.157351,63552.0,63550.0,0.15438174]
[1721326545975,0.158349,63553.0,63550.0,0.15438174]
[1721326546209,0.157361,63548.0,63547.0,0.15632173]
[1721326547326,0.157356,63550.0,63547.0,0.31070347]
[1721326547550,0.00083,63551.0,63548.0,0.15438174]
[1721326548921,0.158184,63551.0,63548.0,0.15438174]
[1721326549134,0.157357,63550.0,63548.0,0.15438174]
[1721326549358,0.157358,63549.0,63548.0,0.15438174]
[1721326549576,0.157356,63550.0,63548.0,0.15438174]
[1721326550256,0.160184,63551.0,63548.0,0.15538174]
[1721326550508,0.157356,63550.0,63548.0,0.15538174]
[1721326550978,0.158356,63550.0,63548.0,0.15638174]
[1721326551203,0.157356,63550.0,63548.0,0.15438174]
[1721326551392,0.00183,63551.0,63548.0,0.15438174]
[1721326551393,0.00083,63551.0,63549.0,0.31786383]
[1721326551656,0.00183,63551.0,63550.0,0.38723774]
[1721326551910,0.00183,63551.0,63550.0,0.76464974]
[1721326553035,0.00183,63551.0,63550.0,1.07936174]
[1721326553278,0.083294,63580.0,63559.0,0.610202]
[1721326553500,0.157312,63568.0,63563.0,0.157322]
[1721326553724,0.157312,63568.0,63564.0,0.15438174]
[1721326553953,0.314593,63575.0,63564.0,0.15438174]
[1721326554182,0.157319,63565.0,63564.0,0.15438174]
[1721326554417,0.58510975,63580.0,63559.0,0.15362173]
[1721326554418,0.15733,63561.0,63559.0,0.15362173]
[1721326554640,0.157326,63562.0,63559.0,0.30800347]
[1721326555768,0.001,63561.0,63559.0,0.31400347]
[1721326556246,0.157326,63562.0,63559.0,0.46533647]
[1721326556507,0.314643,63565.0,63559.0,0.46533647]
[1721326556508,0.157319,63565.0,63562.0,0.157326]
[1721326556727,0.157319,63565.0,63564.0,0.009]
[1721326557174,0.157318,63566.0,63562.0,0.31170774]
[1721326557408,0.002794,63581.0,63563.0,0.46902674]
[1721326557637,0.157311,63569.0,63565.0,0.157318]
[1721326558090,0.157314,63567.0,63564.0,0.083]
[1721326558311,0.001,63565.0,63564.0,0.24838174]
[1721326558536,0.001,63565.0,63564.0,0.23738174]
[1721326558756,0.158319,63565.0,63564.0,0.23738174]
[1721326559015,0.472957,63565.0,63564.0,0.23738174]
[1721326559234,0.001,63565.0,63564.0,0.23738174]
[1721326559510,0.159319,63565.0,63564.0,0.24338174]
[1721326559944,0.002,63565.0,63564.0,0.24338174]
[1721326560395,0.158319,63565.0,63564.0,0.24338174]
[1721326560595,0.159319,63565.0,63564.0,0.25538174]
[1721326561064,0.473957,63565.0,63564.0,0.25538174]
[1721326561310,0.159319,63565.0,63564.0,0.25538174]
[1721326562019,0.788595,63565.0,63564.0,0.018]
[1721326562248,1.103233,63565.0,63564.0,0.018]
[1721326562693,0.788595,63565.0,63564.0,0.018]
[1721326564133,0.159319,63565.0,63564.0,0.018]
[1721326564383,0.473957,63565.0,63564.0,0.018]
[1721326565564,0.788595,63565.0,63564.0,0.018]
[1721326566020,0.788595,63565.0,63564.0,0.013]
[1721326566485,1.103233,63565.0,63564.0,0.013]
[1721326566991,0.788595,63565.0,63564.0,0.013]
[1721326567447,1.103233,63565.0,63564.0,0.013]
[1721326568129,1.7037567,63565.0,63564.0,0.013]
[1721326568380,2.72401555,63565.0,63564.0,0.013]
[1721326568607,3.03865415,63565.0,63564.0,1e-06]
[1721326568822,3.06328305,63565.0,63564.0,1e-06]
[1721326569051,1.416226,63549.0,63548.0,0.4726]
[1721326569328,0.1416,63542.0,63540.0,0.46304871]
[1721326569577,0.786905,63540.0,63539.0,0.01542173]
[1721326569807,0.472231,63528.0,63527.0,0.4726]
[1721326570027,0.787052,63528.0,63527.0,0.01542173]
[1721326570464,0.472231,63528.0,63527.0,0.01542173]
[1721326570687,0.15741,63528.0,63527.0,0.01542173]
[1721326570933,0.157402,63532.0,63527.0,0.01542173]
[1721326571184,0.157402,63532.0,63531.0,0.07717479]
[1721326571412,0.157409,63529.0,63527.0,0.02542173]
[1721326571638,0.157398,63534.0,63529.0,0.157407]
[1721326571861,0.157398,63534.0,63529.0,0.31178874]
[1721326572115,0.0537867,63540.0,63529.0,0.31178874]
[1721326572116,0.157398,63533.0,63529.0,0.31178874]
[1721326572362,0.157396,63534.0,63530.0,0.157405]
[1721326572597,0.0537867,63540.0,63531.0,0.377304]
[1721326572844,0.0537867,63540.0,63532.0,0.15438174]
[1721326573061,0.2071687,63540.0,63535.0,0.157391]
[1721326573281,0.157384,63539.0,63535.0,0.32719447]
[1721326573502,0.157391,63536.0,63535.0,0.01542173]
[1721326575086,0.473173,63536.0,63535.0,0.01542173]
[1721326575804,0.8667498,63536.0,63535.0,0.01542173]
[1721326576028,1.6361138,63536.0,63535.0,0.02442173]
[1721326576269,2.10527754,63536.0,63535.0,0.02442173]
[1721326576489,2.10527754,63536.0,63535.0,0.009]
[1721326576490,2.47351593,63536.0,63535.0,0.009]
[1721326576747,1.102031,63519.0,63518.0,0.00737801]
[1721326576988,1.245031,63519.0,63518.0,0.00737801]
[1721326577904,1.559897,63519.0,63518.0,0.00737801]
[1721326578165,1.71427874,63519.0,63518.0,0.00737801]
[1721326578386,1.81427874,63519.0,63518.0,0.00737801]
[1721326578645,1.96862831,63519.0,63518.0,0.00737801]
[1721326579397,1.97462831,63519.0,63518.0,0.00737801]
[1721326580079,1.99062831,63519.0,63518.0,0.00737801]
[1721326582432,1.98362831,63519.0,63518.0,0.00737801]
[1721326582934,1.51438057,63519.0,63518.0,0.00737801]
[1721326583186,0.487299,63519.0,63518.0,0.00737801]
[1721326583431,0.015,63519.0,63518.0,0.00737801]
[1721326583678,0.172433,63519.0,63518.0,0.00737801]
[1721326583922,0.487299,63519.0,63518.0,0.00737801]
[1721326584150,0.8508949,63519.0,63518.0,0.00737801]
[1721326584606,0.2291629,63519.0,63518.0,0.00737801]
[1721326584850,0.023,63519.0,63518.0,0.00737801]
[1721326585039,0.487299,63519.0,63518.0,0.00737801]
[1721326585299,0.02,63519.0,63518.0,0.00737801]
[1721326585538,0.162433,63519.0,63518.0,0.00737801]
[1721326585787,0.314854,63522.0,63518.0,0.00937801]
[1721326586015,0.157427,63522.0,63518.0,0.02579974]
[1721326586453,0.314848,63523.0,63518.0,0.02579974]
[1721326586690,0.472299,63519.0,63518.0,0.02579974]
[1721326587160,0.787165,63519.0,63518.0,0.02379974]
[1721326587393,1.102031,63519.0,63518.0,0.02379974]
[1721326588956,1.102031,63519.0,63518.0,0.02479974]
[1721326589183,1.2265941,63519.0,63518.0,0.02479974]
[1721326589632,1.2305941,63519.0,63518.0,0.02479974]
[1721326590105,1.106031,63519.0,63518.0,0.02479974]
[1721326590330,0.476299,63519.0,63518.0,0.02479974]
[1721326590560,0.161433,63519.0,63518.0,0.02479974]
[1721326590779,0.791165,63519.0,63518.0,0.02479974]
[1721326591014,0.480299,63519.0,63518.0,0.02479974]
[1721326591451,0.476299,63519.0,63518.0,0.02479974]
[1721326591676,0.161433,63519.0,63518.0,0.02479974]
[1721326591922,0.2405464,63519.0,63518.0,0.02479974]
[1721326592148,0.8702784,63519.0,63518.0,0.01037801]
[1721326592377,0.8702784,63519.0,63518.0,0.00837801]
[1721326592378,1.2432444,63519.0,63518.0,0.00837801]
[1721326592607,1.88789214,63519.0,63518.0,0.00937801]
[1721326592825,1.88789214,63519.0,63518.0,0.00837801]
[1721326593056,1.88789214,63519.0,63518.0,0.00737801]
[1721326593283,1.89089214,63519.0,63518.0,0.00837801]
[1721326593543,1.93789214,63519.0,63518.0,0.00837801]
[1721326593768,1.88789214,63519.0,63518.0,0.00837801]
[1721326593995,1.89689214,63519.0,63518.0,0.00837801]
[1721326594501,1.89689214,63519.0,63518.0,0.00737801]
[1721326594717,1.90469155,63519.0,63518.0,0.00737801]
[1721326595840,1.51071215,63519.0,63518.0,0.00737801]
[1721326596070,0.80396441,63519.0,63518.0,0.00737801]
[1721326596319,0.17423241,63519.0,63518.0,0.00737801]
[1721326596571,0.48909841,63519.0,63518.0,0.00737801]
[1721326597505,0.80396441,63519.0,63518.0,0.00737801]
[1721326597689,0.91584595,63519.0,63518.0,0.00737801]
[1721326598165,0.59297995,63519.0,63518.0,0.00737801]
[1721326598619,0.90784595,63519.0,63518.0,0.00837801]
[1721326599286,0.89884595,63519.0,63518.0,0.00837801]
[1721326599764,0.58397995,63519.0,63518.0,0.01037801]
[1721326599995,0.58397995,63519.0,63518.0,0.00837801]
[1721326600249,0.58397995,63519.0,63518.0,0.00937801]
[1721326600682,0.58397995,63519.0,63518.0,0.00837801]
[1721326601193,0.58397995,63519.0,63518.0,0.00937801]
[1721326602807,0.314832,63526.0,63520.0,0.15743]
[1721326603058,0.11513147,63531.0,63518.0,0.02479974]
[1721326603059,0.314842,63524.0,63518.0,0.02479974]
[1721326603283,0.157431,63520.0,63518.0,0.02479974]
[1721326603496,0.157426,63522.0,63518.0,0.18223274]
[1721326603713,0.157426,63522.0,63518.0,0.18123274]
[1721326603926,0.157428,63521.0,63518.0,0.18123274]
[1721326604147,0.157428,63521.0,63518.0,0.02279974]
[1721326604385,0.314849,63523.0,63518.0,0.02379974]
[1721326604386,0.157424,63523.0,63518.0,0.02379974]
[1721326604613,0.157425,63522.0,63518.0,0.02379974]
[1721326604837,0.319842,63524.0,63518.0,0.18123474]
[1721326604838,0.157428,63521.0,63518.0,0.18123474]
[1721326605337,0.157428,63521.0,63518.0,0.02379974]
[1721326605556,0.2376399,63521.0,63518.0,0.02379974]
[1721326605794,0.472299,63519.0,63518.0,0.02279974]
[1721326606047,0.787165,63519.0,63518.0,0.02279974]
[1721326607201,0.787165,63519.0,63518.0,0.02479974]
[1721326608316,0.472299,63519.0,63518.0,0.02479974]
[1721326609268,0.31485,63523.0,63518.0,0.02479974]
[1721326609541,0.157431,63520.0,63518.0,0.02479974]
[1721326610016,0.157426,63522.0,63519.0,0.0769]
[1721326610232,0.07918385,63530.0,63519.0,0.23433]
[1721326610437,0.157426,63522.0,63519.0,0.0769]
[1721326612092,0.157426,63522.0,63519.0,0.234333]
[1721326612532,0.314849,63523.0,63519.0,0.0769]
[1721326612754,0.157426,63522.0,63519.0,0.0769]
[1721326612976,0.15742,63524.0,63519.0,0.549196]
[1721326613206,0.314842,63524.0,63519.0,0.234331]
[1721326613668,0.157426,63522.0,63519.0,0.0769]
[1721326613933,0.158426,63522.0,63519.0,0.0869]
[1721326614167,0.158426,63522.0,63519.0,0.0809]
[1721326614387,0.15743,63520.0,63519.0,0.0769]
[1721326614601,0.15743,63520.0,63519.0,0.0809]
[1721326615298,0.15743,63520.0,63519.0,0.0769]
[1721326615513,0.15743,63520.0,63519.0,0.0809]
[1721326616858,0.15743,63520.0,63519.0,0.0829]
[1721326617074,0.15843,63520.0,63519.0,0.0799]
[1721326617528,0.15843,63520.0,63519.0,0.0829]
[1721326617769,0.15843,63520.0,63519.0,0.0799]
[1721326617999,0.15843,63520.0,63519.0,0.0859]
[1721326618229,0.001,63520.0,63519.0,0.0829]
[1721326618713,0.157428,63521.0,63519.0,0.0769]
[1721326618935,0.001,63520.0,63519.0,0.0799]
[1721326620514,0.001,63520.0,63519.0,0.02442173]
[1721326620515,0.973879,63520.0,63519.0,0.02442173]
[1721326620772,0.925552,63520.0,63519.0,0.02142173]
[1721326621015,1.3166046,63520.0,63519.0,0.02442173]
[1721326621249,1.31560445,63520.0,63519.0,0.01842173]
[1721326621483,1.31560445,63520.0,63519.0,0.01542173]
[1721326621940,1.3097649,63520.0,63519.0,0.02242173]
[1721326622194,1.28512571,63520.0,63519.0,0.01742173]
[1721326622424,0.97009518,63520.0,63519.0,0.01742173]
[1721326622640,1.28495618,63520.0,63519.0,0.01742173]
[1721326622886,1.28450158,63520.0,63519.0,0.01742173]
[1721326623801,1.28450158,63520.0,63519.0,0.01942173]
[1721326624034,1.28400969,63520.0,63519.0,0.01942173]
[1721326624271,0.07507491,63520.0,63519.0,0.004]
[1721326624497,0.157425,63523.0,63519.0,0.306833]
[1721326624725,0.314828,63527.0,63519.0,0.32225473]
[1721326624993,0.11433147,63531.0,63519.0,0.32225473]
[1721326624994,0.04913147,63531.0,63530.0,0.157405]
[1721326625220,0.20653447,63531.0,63530.0,0.01542173]
[1721326625441,0.157403,63531.0,63530.0,0.01542173]
[1721326625668,0.314789,63535.0,63530.0,0.17282573]
[1721326625894,0.157396,63534.0,63530.0,0.17282573]
[1721326626607,0.314789,63535.0,63530.0,0.01542173]
[1721326626608,0.157402,63532.0,63530.0,0.01542173]
[1721326627043,0.157403,63531.0,63530.0,0.01542173]
[1721326628241,0.787015,63531.0,63530.0,0.01542173]
[1721326628489,0.865714,63531.0,63530.0,0.01542173]
[1721326628995,0.865714,63531.0,63530.0,0.01842173]
[1721326629231,0.865714,63531.0,63530.0,0.02142173]
[1721326629471,0.157397,63534.0,63531.0,0.0786]
[1721326629679,0.157389,63537.0,63533.0,0.157398]
[1721326630110,0.04943785,63543.0,63533.0,0.00314773]
[1721326630342,0.04943785,63543.0,63542.0,0.157376]
[1721326630539,0.04943785,63543.0,63542.0,0.63084973]
[1721326630757,0.157369,63545.0,63542.0,0.15872173]
[1721326631241,0.314731,63547.0,63542.0,0.31609673]
[1721326631458,0.314731,63547.0,63542.0,0.15872173]
[1721326631459,0.314733,63546.0,63542.0,0.15872173]
[1721326631689,0.314738,63545.0,63542.0,0.01542173]
[1721326631912,0.157373,63543.0,63542.0,0.01542173]
[1721326632134,0.314734,63546.0,63542.0,0.01542173]
[1721326632354,0.42410348,63555.0,63542.0,0.01542173]
[1721326632591,0.157365,63547.0,63542.0,0.33017173]
[1721326632809,0.13186555,63554.0,63542.0,0.33017173]
[1721326632810,0.314696,63554.0,63545.0,0.314733]
[1721326633149,0.157352,63552.0,63548.0,0.15736]
[1721326633370,0.04921548,63555.0,63546.0,0.157365]
[1721326633371,0.157356,63550.0,63546.0,0.157365]